fUSD/lending_fUSD_20251126
["ID","MTS","AMOUNT","RATE_DAILY","PERIOD"]
[394929725,1764153040296,-500.0,0.00040774,31]
[394929726,1764153040306,-477.10147046,0.00040774,31]
[394929727,1764153040316,-2080.71,0.00040776,2]
[394929728,1764153040326,-1000.0,0.00040819,2]
[394929730,1764153040336,-150.0,0.00040985,2]
[394929731,1764153040345,-200.0,0.00041007,2]
[394929732,1764153040355,-172.72,0.0004103,2]
[394929733,1764153040364,-1000.0,0.0004103,120]
[394929734,1764153040373,-150.0,0.00041039,2]
[394929735,1764153040382,-282.88,0.00041039,2]
[394929736,1764153040391,-159.54,0.00041096,2]
[394929737,1764153040400,-5214.44484745,0.000414,2]
[394929738,1764153040410,-172.66250147,0.0004172,31]
[394929739,1764153040420,-500.0,0.0004172,31]
[394929740,1764153040430,-174.54009144,0.0004172,31]
[394929741,1764153040443,-189826.5273,0.00041721,2]
[394929743,1764153040453,-4463.73,0.00041821,2]
[394929745,1764153040462,-156.37168018,0.00041821,28]
[394929747,1764153040471,-4085.6031,0.0004183,2]
[394929749,1764153040481,-88507.5826,0.0004183,2]
[394929751,1764153040490,-1000.0,0.00041831,2]
[394929753,1764153040499,-2400.0306,0.00041831,2]
[394929755,1764153040508,-174.73482004,0.00041831,15]
[394929757,1764153040517,-156.37168018,0.00041837,28]
[394929759,1764153040526,-156.37168018,0.00041852,28]
[394929760,1764153040536,-156.37168018,0.00041868,28]
[394929762,1764153040545,-174.73482004,0.00041873,15]
[394929764,1764153040554,-156.37168018,0.00041883,28]
[394929766,1764153040563,-156.37168018,0.00041899,28]
[394929768,1764153040572,-174.73482004,0.00041914,15]
[394929770,1764153040582,-156.37168018,0.00041914,28]
[394929772,1764153040591,-180.305,0.0004192,62]
[394929774,1764153040601,-246923.068872,0.00041921,4]
[394929777,1764153040611,-159337.380583,0.00041921,4]
[394929779,1764153040620,-1000.0,0.00041931,120]
[394929781,1764153040630,-10000.0,0.00041931,2]
[394929783,1764153040639,-1000.0,0.00041931,2]
[394929785,1764153040649,-3983.43451458,0.0004199,4]
[394929787,1764153040657,-5000.0,0.00042,120]
[394929788,1764153040666,-3983.43451458,0.00042003,4]
[394929790,1764153040675,-3983.43451458,0.00042004,4]
[394929792,1764153040684,-3983.43451458,0.00042004,4]
[394929794,1764153040693,-150.56,0.00042004,2]
[394929796,1764153040702,-150.56,0.00042004,2]
[394929798,1764153040711,-1041.3229691,0.0004201,30]
[394929800,1764153040720,-443.05931697,0.00042013,31]
[394929802,1764153040729,-402.87917009,0.00042013,31]
[394929804,1764153040738,-500.0,0.00042013,31]
[394929806,1764153040747,-573.92688003,0.00042013,31]
[394929808,1764153040758,-500.0,0.00042013,31]
[394929810,1764153040774,-330.78905227,0.00042013,31]
[394929812,1764153040783,-834.0,0.00042014,7]
[394929814,1764153040792,-9971.39423122,0.00042014,21]
[394929816,1764153040801,-494546.74706557,0.00042014,7]
[394931025,1764153600877,517.28,0.00042014,120]
[394931026,1764153601045,517.28,0.00042014,120]
[394931027,1764153601280,517.28,0.00042014,120]
[394931028,1764153601516,517.28,0.00042014,120]
[394931029,1764153601760,517.28,0.00042014,120]
[394931030,1764153602048,517.28,0.00042014,120]
[394931031,1764153602278,517.28,0.00042014,120]
[394931032,1764153602542,517.28,0.00042014,120]
[394931033,1764153602816,517.28,0.00042014,120]
[394931034,1764153603057,517.28,0.00042014,120]
[394931035,1764153603322,517.28,0.00042014,120]
[394931036,1764153603716,517.28,0.00042014,120]
[394931037,1764153604290,517.28,0.00042014,120]
[394931038,1764153604542,517.28,0.00042014,120]
[394931039,1764153604777,517.28,0.00042014,120]
[394931040,1764153605009,517.28,0.00042014,120]
[394931041,1764153605243,517.28,0.00042014,120]
[394931042,1764153605475,517.28,0.00042014,120]
[394931043,1764153605707,517.28,0.00042014,120]
[394931044,1764153605955,517.28,0.00042014,120]
[394931045,1764153606180,517.28,0.00042014,120]
[394931046,1764153606451,517.28,0.00042014,120]
[394931047,1764153606716,517.28,0.00042014,120]
[394931048,1764153606957,517.44787589,0.00042014,120]
[394931049,1764153789980,208.37,0.00013699,2]
[394931054,1764154232035,-208.37,0.00020187,2]
[394931055,1764154232045,-208.37,0.00026676,2]
[394931056,1764154232055,-400.0,0.00028,120]
[394931057,1764154232064,-400.0,0.0003,120]
[394931058,1764154232074,-300.0,0.00031,120]
[394931059,1764154232084,-300.0,0.00031074,119]
[394931060,1764154232094,-300.0,0.00031074,119]
[394931061,1764154232104,-300.0,0.00031074,119]
[394931062,1764154232113,-300.0,0.00031074,119]
[394931063,1764154232122,-300.0,0.00031074,119]
[394931064,1764154232132,-400.0,0.00032,120]
[394931065,1764154232142,-300.0,0.00033,120]
[394931066,1764154232151,-208.37,0.00033165,2]
[394931067,1764154232161,-400.0,0.00034,120]
[394931068,1764154232170,-300.0,0.00035,120]
[394931069,1764154232180,-400.0,0.00036,120]
[394931070,1764154232189,-300.0,0.00037,120]
[394931071,1764154232199,-199.47170271,0.00037529,7]
[394931072,1764154232208,-150.0,0.00037529,7]
[394931073,1764154232217,-150.0,0.00037529,7]
[394931074,1764154232225,-151.14485449,0.00037529,7]
[394931075,1764154232234,-150.0,0.00037529,7]
[394931076,1764154232243,-150.0,0.00037529,7]
[394931077,1764154232253,-150.0,0.00037529,7]
[394931078,1764154232262,-150.0,0.00037529,7]
[394931079,1764154232272,-163.0,0.00037813,7]
[394931080,1764154232281,-163.0,0.00037813,7]
[394931081,1764154232290,-153.0,0.00037813,7]
[394931082,1764154232299,-163.0,0.00037813,7]
[394931083,1764154232309,-153.0,0.00037813,7]
[394931084,1764154232318,-163.0,0.00037813,7]
[394931085,1764154232327,-153.0,0.00037813,7]
[394931086,1764154232336,-93.5554906,0.00037813,7]
[394931087,1764154232348,-60.96144229,0.00037813,7]
[394931088,1764154232357,-153.0,0.00037813,7]
[394931089,1764154232366,-41.9898172,0.00037813,7]
[394931090,1764154232381,-111.0101828,0.00037813,7]
[394931091,1764154232390,-153.0,0.00037813,7]
[394931092,1764154232403,-153.0,0.00037813,7]
[394931093,1764154232412,-153.0,0.00037813,7]
[394931094,1764154232421,-30.21173028,0.00037813,7]
[394931096,1764154237982,-122.78826972,0.00037813,7]
[394931097,1764154237992,-153.0,0.00037813,7]
[394931098,1764154238003,-153.0,0.00037813,7]
[394931099,1764154238012,-153.0,0.00037813,7]
[394931100,1764154238022,-153.0,0.00037813,7]
[394931101,1764154238032,-153.0,0.00037813,7]
[394931102,1764154238043,-153.0,0.00037813,7]
[394931103,1764154238053,-153.0,0.00037813,7]
[394931104,1764154238062,-153.0,0.00037813,7]
[394931105,1764154238071,-241.94805284,0.00037813,7]
[394931106,1764154238081,-151.0,0.00037813,7]
[394931107,1764154238091,-156.0,0.00037813,7]
[394931108,1764154238100,-151.0,0.00037813,7]
[394931109,1764154238111,-150.37684516,0.00037813,7]
[394931110,1764154238123,-2.62315484,0.00037813,7]
[394931111,1764154238135,-157.93391287,0.00037813,7]
[394931112,1764154238144,-1386.26078228,0.0003782,2]
[394931113,1764154238155,-1323.45921772,0.0003782,2]
[394931114,1764154238165,-152.0,0.0003782,7]
[394931115,1764154238175,-152.0,0.0003782,7]
[394931116,1764154238186,-111.37623028,0.00038,120]
[394931120,1764154240130,-288.62376972,0.00038,120]
[394931121,1764154240139,-300.0,0.00039,120]
[394931122,1764154240149,-208.37,0.00039654,2]
[394931123,1764154240158,-400.0,0.0004,120]
[394931124,1764154240167,-500.0,0.00040547,120]
[394931125,1764154240176,-500.0,0.00040578,5]
[394931126,1764154240185,-168.0,0.00040675,2]
[394931127,1764154240194,-328.0,0.00040758,30]
[394931128,1764154240203,-505.90298976,0.0004077,3]
[394931129,1764154240212,-5000.0,0.00040787,120]
[394931130,1764154240222,-999.0,0.00040803,3]
[394931131,1764154240230,-538.74893574,0.00040821,120]
[394931132,1764154240239,-168.0,0.00040967,2]
[394931133,1764154240249,-328.0,0.00041178,30]
[394931134,1764154240258,-168.0,0.00041296,2]
[394931135,1764154240268,-300.0,0.000414,120]
[394931136,1764154240278,-1740.54395278,0.000415,2]
[394931137,1764154240288,-328.0,0.00041598,30]
[394931138,1764154240299,-584.20126469,0.0004161,2]
[394931139,1764154240310,-467.0015,0.0004161,2]
[394931140,1764154240321,-1000.0,0.00041621,2]
[394931141,1764154240331,-599.5549,0.00041621,2]
[394931142,1764154240342,-4260.10840711,0.00041621,2]
[394931143,1764154240356,-333.50384,0.00041621,2]
[394931144,1764154240389,-329.97971288,0.00041621,2]
[394931145,1764154240400,-1360.04125063,0.00041621,2]
[394931146,1764154240411,-4136.23673478,0.00041621,2]
[394931147,1764154240421,-4314.56955942,0.00041621,2]
[394931148,1764154240451,-6957.54013537,0.00041621,2]
[394931149,1764154240552,-8381.46365384,0.00041621,2]
[394931204,1764154244581,-601.25915374,0.000411,2]
[394931205,1764154244591,-2323.09710597,0.00041621,2]
[394931206,1764154244600,-33.07983488,0.00041711,4]
[394931216,1764154246058,-3521.08544999,0.00041711,4]
[394931217,1764154246373,-426.31985086,0.00041711,4]
[394931218,1764154246384,-260.31020836,0.00041711,4]
[394931219,1764154246396,-1297.45724249,0.00041711,4]
[394931220,1764154246410,-351.5521247,0.00041711,4]
[394931235,1764154361512,1000.0,0.00042014,30]
[394931246,1764155432312,-150.0,0.0003743,7]
[394931247,1764155432322,-150.0,0.0003743,7]
[394931248,1764155432331,-150.0,0.0003743,7]
[394931249,1764155432341,-150.0,0.0003743,7]
[394931250,1764155432350,-150.0,0.0003743,7]
[394931252,1764155432359,-91.05406,0.0003743,7]
[394931258,1764155438352,-58.94594,0.0003743,7]
[394931259,1764155438362,-150.00000001,0.0003743,7]
[394931260,1764155438371,-150.0,0.0003743,7]
[394931261,1764155438381,-150.0,0.0003743,7]
[394931262,1764155438391,-150.0,0.0003743,7]
[394931263,1764155438400,-166.66,0.00038787,30]
[394931264,1764155438410,-166.66,0.00039603,30]
[394931265,1764155438419,-620.0,0.0004,120]
[394931266,1764155438428,-150.0,0.0004,30]
[394931267,1764155438437,-166.66,0.0004042,30]
[394931268,1764155438447,-1000.0,0.0004067,2]
[394931269,1764155438456,-1000.0,0.00040753,120]
[394931270,1764155438465,-187.0,0.00040758,30]
[394931271,1764155438475,-177.44,0.00040833,2]
[394931272,1764155438484,-5158.43673333,0.00041,120]
[394931273,1764155438494,-250.0,0.00041011,2]
[394931274,1764155438503,-150.64,0.00041015,2]
[394931275,1764155438513,-241.71931971,0.00041041,2]
[394931276,1764155438522,-384.83885913,0.00041064,2]
[394931277,1764155438531,-159.54,0.00041096,2]
[394931278,1764155438540,-402.5964136,0.0004117,2]
[394931279,1764155438549,-340.33,0.0004117,2]
[394931280,1764155438559,-187.0,0.00041178,30]
[394931281,1764155438568,-166.66,0.00041236,30]
[394931282,1764155438577,-600.0,0.000414,120]
[394931283,1764155438588,-892.06752101,0.00041521,15]
[394931284,1764155438597,-892.06752101,0.00041565,15]
[394931285,1764155438606,-151.69825372,0.00041589,30]
[394931286,1764155438616,-150.0,0.00041589,30]
[394931287,1764155438625,-158.13716325,0.00041589,30]
[394931288,1764155438635,-187.0,0.00041598,30]
[394931289,1764155438645,-15284.19467182,0.000416,2]
[394931290,1764155438656,-19668.41136978,0.000416,2]
[394931291,1764155438666,-10627.2292112,0.000416,4]
[394931292,1764155438675,-892.06752101,0.00041608,15]
[394931293,1764155438684,-252.95149488,0.00041621,3]
[394931294,1764155438694,-154.9951174,0.00041621,10]
[394931295,1764155438703,-892.06752101,0.00041652,15]
[394931296,1764155438712,-45.69095672,0.00041696,15]
[394931297,1764155438724,-474.71000045,0.00041696,15]
[394931457,1764155446493,-371.66656384,0.00041696,15]
[394931458,1764155446502,-961.03343616,0.00041729,4]
[394931459,1764155446513,-219.76980953,0.00041729,4]
[394931460,1764155446522,-892.06752101,0.00041739,15]
[394931461,1764155446532,-566.17666944,0.00041783,15]
[394931473,1764156263084,1022.48983326,0.00042014,30]
[394931474,1764156308085,2805.2794322,0.00018,2]
[394931475,1764156389983,156.27,0.00013699,2]
[394931476,1764156474012,15687.84798157,0.00017,2]
[394931477,1764156474036,3093.0,0.00017,2]
[394931489,1764156631402,-391.23086674,0.00016999,2]
[394931491,1764156631414,-569.31587421,0.00016999,2]
[394931493,1764156631425,-239.45325905,0.00016999,2]
[394931494,1764156631435,-861.30102345,0.00017,2]
[394931495,1764156631457,-328.3290225,0.00017,2]
[394931496,1764156631469,-408.2574532,0.00017,2]
[394931497,1764156631480,-323.3292545,0.00017,2]
[394931498,1764156631491,-476.85661962,0.00017,2]
[394931499,1764156631515,-1182.28714969,0.00017,2]
[394931500,1764156631528,-1384.09982493,0.00017,2]
[394931501,1764156631625,-607.56498033,0.00017,2]
[394931619,1764156637463,-2501.75175221,0.00017,2]
[394931620,1764156637612,-2486.26542536,0.00017,2]
[394931621,1764156637668,-7154.1625833,0.00017,2]
[394931623,1764156637678,-235.20196347,0.00017973,2]
[394931624,1764156637689,-266.46585557,0.00017973,2]
[394931625,1764156637698,-500.0,0.00017999,2]
[394931626,1764156637708,-233.38474443,0.00017999,2]
[394931627,1764156637727,-30.66391795,0.00017999,2]
[394931628,1764156637740,-500.0,0.00017999,2]
[394931629,1764156637749,-469.84801205,0.00017999,2]
[394931630,1764156637762,-30.15198795,0.00017999,2]
[394931631,1764156637771,-476.09505322,0.00017999,2]
[394931632,1764156637783,-23.90494678,0.00017999,2]
[394931633,1764156637792,-456.75505323,0.00017999,2]
[394931640,1764156639469,-43.24494677,0.00017999,2]
[394931642,1764156639480,-208.02392452,0.00017999,2]
[394931643,1764156639491,-291.97607548,0.00017999,2]
[394931644,1764156639500,-500.0,0.00017999,2]
[394931645,1764156639509,-500.0,0.00017999,2]
[394931646,1764156639518,-500.0,0.00017999,2]
[394931647,1764156639527,-150.8424564,0.00017999,2]
[394931648,1764156639538,-349.1575436,0.00017999,2]
[394931649,1764156639547,-86.4924564,0.00017999,2]
[394931650,1764156639558,-413.5075436,0.00017999,2]
[394931651,1764156639568,-500.0,0.00017999,2]
[394931652,1764156639577,-500.0,0.00017999,2]
[394931653,1764156639588,-500.0,0.00017999,2]
[394931654,1764156639598,-500.0,0.00017999,2]
[394931655,1764156639607,-500.0,0.00017999,2]
[394931656,1764156639617,-500.0,0.00017999,2]
[394931657,1764156639627,-500.0,0.00017999,2]
[394931658,1764156639636,-500.0,0.00017999,2]
[394931659,1764156639645,-500.0,0.00017999,2]
[394931660,1764156639655,-425.17819459,0.00017999,2]
[394931661,1764156639668,-74.82180541,0.00017999,2]
[394931662,1764156639677,-500.0,0.00017999,2]
[394931663,1764156639687,-500.0,0.00017999,2]
[394931664,1764156639696,-421.39051459,0.00017999,2]
[394931665,1764156639708,-78.60948541,0.00017999,2]
[394931666,1764156639718,-500.0,0.00017999,2]
[394931667,1764156639727,-99.46827382,0.00017999,2]
[394931668,1764156639742,-400.53172618,0.00017999,2]
[394931669,1764156639751,-500.0,0.00017999,2]
[394931670,1764156639760,-500.0,0.00017999,2]
[394931671,1764156639769,-500.0,0.00017999,2]
[394931672,1764156639778,-500.0,0.00017999,2]
[394931673,1764156639787,-500.0,0.00017999,2]
[394931674,1764156639795,-500.0,0.00017999,2]
[394931675,1764156639805,-500.0,0.00017999,2]
[394931676,1764156639814,-500.0,0.00017999,2]
[394931677,1764156639823,-596.70693789,0.00017999,2]
[394931678,1764156639832,-2837.49348511,0.00018,2]
[394931679,1764156639844,-523.34287504,0.00018,2]
[394931680,1764156639855,-1351.0455693,0.00018,2]
[394931724,1764156644095,-490.0,0.00018,2]
[394931725,1764156644108,-1075.79329,0.00018,2]
[394931733,1764156644328,-8518.80126694,0.00018,2]
[394931736,1764156644344,-604.37804814,0.00018,2]
[394931738,1764156644356,-526.813,0.00018,2]
[394931892,1764156645814,-945378.48740031,0.00018,2]
[394932047,1764157266559,2400.71688,0.00042048,30]
[394932050,1764157481834,239.0,0.00042048,30]
[394932051,1764157531257,215.0,0.00042048,30]
[394932065,1764157831603,-179.28100155,0.00017898,2]
[394932066,1764157831612,-179.28100155,0.000179,2]
[394932067,1764157831621,-516.76482389,0.00017982,2]
[394932068,1764157831654,-1602.70597696,0.00017982,2]
[394932069,1764157831663,-245.0,0.00017982,2]
[394932070,1764157831672,-1058.54078708,0.00017998,2]
[394932071,1764157831683,-83.45921292,0.00017998,2]
[394932072,1764157831693,-215.31823009,0.00017999,2]
[394932073,1764157831709,-284.68176991,0.00017999,2]
[394932074,1764157831718,-548.19368689,0.00017999,2]
[394932075,1764157831727,-500.0,0.00017999,2]
[394932076,1764157831736,-500.0,0.00017999,2]
[394932077,1764157831745,-17513.8516921,0.00018,2]
[394932078,1764157831764,-841.29844284,0.00018,2]
[394932084,1764157836878,250.0,0.00042048,50]
[394932085,1764157837382,250.0,0.00042048,50]
[394932088,1764157837544,-2520.29162113,0.00018,2]
[394932089,1764157837555,-564.18093127,0.00018,2]
[394932090,1764157837572,-799.99999999,0.00018,2]
[394932091,1764157837599,-499.21428765,0.00018,2]
[394932092,1764157837610,-9832.34009608,0.00018,2]
[394932093,1764157837621,-2576.0915,0.00018,2]
[394932094,1764157837654,-933.12844798,0.00018,2]
[394932095,1764157837700,250.0,0.00042048,50]
[394932096,1764157837762,-29858.19756026,0.00018,2]
[394932097,1764157837774,-8677.31965115,0.00018,2]
[394932098,1764157837785,-1421.56746273,0.00018,2]
[394932103,1764157838027,250.0,0.00042048,50]
[394932130,1764157838395,250.0,0.00042048,50]
[394932150,1764157838738,250.0,0.00042048,50]
[394932151,1764157839233,250.0,0.00042048,50]
[394932152,1764157839441,250.0,0.00042048,50]
[394932153,1764157839740,250.0,0.00042048,50]
[394932154,1764157839757,-874.31911172,0.00018,2]
[394932155,1764157839768,-871.4796788,0.00018,2]
[394932156,1764157839779,-1608.1835712,0.00018,2]
[394932157,1764157839791,-940.63040524,0.00018,2]
[394932158,1764157839914,-449.87103099,0.00018,2]
[394932159,1764157839968,-24678.1547668,0.00018,2]
[394932160,1764157839979,-4372.68788244,0.00018,2]
[394932161,1764157840041,-8797.92380262,0.00018,2]
[394932162,1764157840050,-371.686058,0.00018,2]
[394932163,1764157840060,-250.0,0.0001978,2]
[394932164,1764157840070,-195.0,0.0001978,2]
[394932165,1764157840079,-385.47177,0.0002,2]
[394932166,1764157840088,-156.27,0.00020187,2]
[394932167,1764157840098,-371.686058,0.00020321,2]
[394932168,1764157840107,-371.686058,0.00022643,2]
[394932169,1764157840116,-150.0,0.00022804,2]
[394932170,1764157840125,-150.0,0.00022804,2]
[394932172,1764157840134,-150.0,0.00022804,2]
[394932174,1764157840143,-150.0,0.00022804,2]
[394932176,1764157840152,-150.0,0.00022804,2]
[394932178,1764157840160,-150.0,0.00022804,2]
[394932180,1764157840169,-150.0,0.00022804,2]
[394932182,1764157840178,-259.01,0.00022804,2]
[394932184,1764157840186,-371.686058,0.00024964,2]
[394932185,1764157840195,-502.0,0.00025,10]
[394932187,1764157840205,-6627.11077693,0.00025644,2]
[394932190,1764157840214,-156.27,0.00026676,2]
[394932192,1764157840224,-1000.0,0.0003,15]
[394932194,1764157840233,-254.11717042,0.0003,14]
[394932197,1764157840251,-156.27,0.00033165,2]
[394932199,1764157840262,-400.0,0.00035,2]
[394932201,1764157840272,-2258.1,0.00035403,2]
[394932203,1764157840282,-166.66,0.00036167,30]
[394932205,1764157840291,-166.66,0.00036928,30]
[394932206,1764157840302,-264.87491429,0.00037374,2]
[394932208,1764157840313,-166.66,0.0003769,30]
[394932210,1764157840322,-150.0,0.00037825,7]
[394932212,1764157840332,-5000.0,0.0003837,120]
[394932214,1764157840342,-166.66,0.00038451,30]
[394932217,1764157840352,-250.0,0.00039177,2]
[394932219,1764157840361,-166.66,0.00039213,30]
[394932221,1764157840371,-500.0,0.0003952,5]
[394932223,1764157840381,-156.27,0.00039654,2]
[394932225,1764157840391,-166.66,0.00039974,30]
[394932227,1764157840400,-1000.0,0.0004,20]
[394932229,1764157840410,-577.11614941,0.00040266,2]
[394932231,1764157840420,-467.35210378,0.000406,15]
[394932233,1764157840430,-3894.95,0.00040628,2]
[394932235,1764157840440,-5327.0,0.000407,117]
[394932237,1764157840449,-467.35210376,0.0004075,15]
[394932239,1764157840459,-159.64108813,0.00040806,3]
[394932253,1764157840579,250.0,0.00042048,50]
[394932263,1764157840663,250.0,0.00042048,50]
[394932293,1764157840943,250.0,0.00042048,50]
[394932326,1764157841250,250.0,0.00042048,50]
[394932366,1764157841604,250.0,0.00042048,50]
[394932377,1764157841947,250.0,0.00042048,50]
[394932378,1764157842227,250.0,0.00042048,50]
[394932388,1764157842558,250.0,0.00042048,50]
[394932398,1764157842854,250.0,0.00042048,50]
[394932399,1764157843150,250.0,0.00042048,50]
[394932405,1764157843429,250.0,0.00042048,50]
[394932406,1764157844025,-839.35891187,0.00040806,3]
[394932407,1764157844035,-154.71,0.0004086,30]
[394932408,1764157844046,-2000.0,0.00040883,2]
[394932409,1764157844056,-2759.77,0.00040897,2]
[394932410,1764157844067,-467.35210376,0.000409,15]
[394932411,1764157844077,-252.95149489,0.00041011,3]
[394932412,1764157844086,-467.35210376,0.00041049,15]
[394932413,1764157844097,-423.0,0.00041096,2]
[394932414,1764157844107,-467.35210376,0.00041199,15]
[394932415,1764157844126,-423.0,0.00041233,2]
[394932416,1764157844142,-467.35210376,0.00041349,15]
[394932417,1764157844153,-423.0,0.0004137,2]
[394932418,1764157844163,-168.0,0.00041468,2]
[394932419,1764157844172,-467.35210376,0.00041499,15]
[394932420,1764157844182,-423.0,0.00041507,2]
[394932421,1764157844192,-3698.62169569,0.000416,2]
[394932422,1764157844201,-168.0,0.0004161,2]
[394932423,1764157844211,-2793.97837129,0.0004163,2]
[394932424,1764157844220,-423.0,0.00041644,2]
[394932425,1764157844229,-467.35210376,0.00041648,15]
[394932426,1764157844239,-423.0,0.00041781,2]
[394932427,1764157844249,-467.35210376,0.00041798,15]
[394932428,1764157844260,-423.0,0.00041918,2]
[394932429,1764157844269,-1975.58282494,0.00041948,15]
[394932430,1764157844281,-6076.04726811,0.00041948,15]
[394932431,1764157844293,-4498.82878354,0.00041948,15]
[394932432,1764157844303,-467.35210376,0.00041948,15]
[394932433,1764157844313,-344.44227519,0.00041987,120]
[394932434,1764157844322,-213.21,0.00042,30]
[394932435,1764157844332,-400.0,0.00042,120]
[394932436,1764157844341,-200.0,0.00042014,7]
[394932437,1764157844350,-150.0,0.00042027,30]
[394932438,1764157844360,-183.8320815,0.00042031,120]
[394932439,1764157844370,-500.0,0.00042032,30]
[394932440,1764157844379,-500.0,0.00042032,30]
[394932441,1764157844389,-302.76390139,0.00042032,30]
[394932442,1764157844400,-1000.0,0.00042047,7]
[394932443,1764157844410,-227.57707632,0.00042047,31]
[394932444,1764157844421,-200.0,0.00042048,7]
[394932445,1764157844432,-613.0,0.00042048,7]
[394932446,1764157844441,-1365.10576672,0.00042048,21]
[394932447,1764157844454,-713.13,0.00042048,21]
[394932464,1764157846202,-2907.46134889,0.00042048,21]
[394932466,1764157846211,-5052289.4850519,0.00042048,7]
[394932468,1764157846243,-20382.4587928,0.00042048,7]
[394932469,1764157846255,-27222.94472366,0.00042048,7]
[394932470,1764157846269,-167566.0,0.00042048,7]
[394932471,1764157846280,-29415.62555829,0.00042048,7]
[394932472,1764157846291,-87697.1497802,0.00042048,7]
[394932473,1764157846301,-35747.46014068,0.00042048,7]
[394932474,1764157846313,-1785.71652175,0.00042048,7]
[394932475,1764158263098,10121.9,0.00042048,30]
[394932476,1764158455508,151.0,0.00042052,120]
[394932477,1764158736114,686.96681475,0.00042052,30]
[394932478,1764158880639,10000.0,0.00042052,120]
[394932479,1764158893101,10000.0,0.00042052,120]
[394932654,1764159031929,-150.0,0.00037825,7]
[394932655,1764159031939,-150.0,0.00037825,7]
[394932656,1764159031948,-150.0,0.00037825,7]
[394932657,1764159031958,-150.0,0.00037825,7]
[394932658,1764159031967,-152.93167974,0.00037825,7]
[394932659,1764159031977,-191.15551757,0.0004,5]
[394932660,1764159031986,-1048.73064276,0.000401,120]
[394932661,1764159031996,-217.77748147,0.00040892,2]
[394932662,1764159032005,-1000.0,0.00040992,2]
[394932663,1764159032014,-150.0,0.00041,30]
[394932664,1764159032024,-355.89,0.00041021,120]
[394932665,1764159032033,-1200.0,0.00041039,5]
[394932666,1764159032043,-300.0,0.00041039,5]
[394932667,1764159032052,-92.93823425,0.0004104,120]
[394932668,1764159032064,-1407.06176575,0.0004104,120]
[394932669,1764159032073,-195.56621396,0.0004104,2]
[394932670,1764159037063,-1795.22834089,0.0004104,2]
[394932671,1764159037075,-9.20544515,0.0004104,2]
[394932672,1764159037084,-159.54,0.00041096,2]
[394932673,1764159037094,-150.0,0.0004126,2]
[394932674,1764159037104,-1549.33654207,0.0004126,2]
[394932675,1764159037122,-466.29434677,0.0004126,2]
[394932676,1764159037134,-1501.99056459,0.0004126,2]
[394932677,1764159037230,-517.14854657,0.0004126,2]
[394932678,1764159037240,-164.00145343,0.00041607,120]
[394932679,1764159037281,-246.60151792,0.00041607,120]
[394932680,1764159037290,-250.0,0.00041607,120]
[394932681,1764159037300,-195.0,0.00041607,120]
[394932682,1764159037309,-419.53586881,0.000418,2]
[394932683,1764159037819,-437.27305822,0.000418,2]
[394932684,1764159037831,-987.18610805,0.000418,2]
[394932685,1764159037840,-489.23389195,0.00041838,3]
[394932686,1764159037852,-1174.0667096,0.00041838,3]
[394932687,1764159037863,-341.13869845,0.00041838,3]
[394932688,1764159037873,-217.77748147,0.00041847,2]
[394932689,1764159037887,-3321.61716989,0.00041938,4]
[394932690,1764159037898,-501.17903623,0.00041938,4]
[394932691,1764159037910,-478.37891291,0.00041938,4]
[394932692,1764159037921,-351.88118535,0.00041938,4]